bitfinex-derivatives/quotes_SOLF0:USTF0_20241218
["timestamp","ask_amount","ask_price","bid_price","bid_amount"]
[1734552675578,93.6021863,209.52,209.12,5.71246646]
[1734552675878,5.75901674,209.4,209.12,5.71246646]
[1734552676073,48.79829467,209.51,209.08,38.7221863]
[1734552676272,5.68890397,209.4,209.18,5.73430486]
[1734552676676,0.95465393,209.5,209.18,5.73430486]
[1734552677076,0.95465393,209.5,209.15,38.7221863]
[1734552677277,1.0,209.49,209.28,5.78085316]
[1734552677479,1.0,209.49,209.15,38.7221863]
[1734552677776,0.95474508,209.48,209.15,38.7221863]
[1734552677972,0.95474508,209.48,209.27,5.84104053]
[1734552678279,0.95474508,209.48,209.07,38.47317912]
[1734552678477,1.0,209.47,209.22,5.71149439]
[1734552678679,0.95483624,209.46,209.22,5.71149439]
[1734552678879,2.3887,209.39,209.25,2.3902]
[1734552679074,2.3887,209.39,209.22,5.71149439]
[1734552679075,5.65245345,209.42,209.22,5.71149439]
[1734552679482,5.65245345,209.42,209.3,2.3897]
[1734552679781,0.95483624,209.46,209.22,5.71149439]
[1734552680175,0.95483624,209.46,208.92,6.0935]
[1734552680176,6.80349035,209.46,208.92,6.0935]
[1734552680481,6.80349035,209.46,209.2,5.82341225]
[1734552680881,291.0,209.52,209.21,54.76]
[1734552681184,5.67310843,209.96,209.22,2.9952]
[1734552681378,9.56262958,209.95,209.23,14.42]
[1734552681573,9.56262958,209.94,209.66,5.60885642]
[1734552681776,7.1719727,209.94,209.66,5.60885642]
[1734552681983,114.09145465,209.82,209.66,5.60885642]
[1734552682183,347.02926397,210.4,209.68,4.7709]
[1734552682383,347.02926397,210.4,209.65,4.763]
[1734552682584,132.56979644,210.08,209.67,1.0]
[1734552682783,132.56979644,210.08,210.06,2.3811]
[1734552683486,132.56979644,210.08,210.07,5.68742]
[1734552683695,5.6251156,210.38,209.9,54.66]
[1734552683884,9.42762568,210.37,210.07,5.8068844]
[1734552684079,285.22863664,210.69,210.2,2.3795]
[1734552684289,5.84461,210.45,210.07,5.8068844]
[1734552684486,5.84461,210.45,210.08,0.95201827]
[1734552684787,285.22863664,210.69,210.27,5.7685872]
[1734552685092,285.22863664,210.69,210.08,0.95201827]
[1734552685387,5.6491228,210.61,210.39,5.595964]
[1734552685887,4.01461958,210.5,210.39,5.595964]
[1734552686089,5.6491228,210.61,210.39,5.595964]
[1734552686588,3.94241939,210.6,210.39,5.595964]
[1734552686790,3.94241939,210.59,210.47,2.3767]
[1734552686987,3.94241939,210.58,210.39,5.595964]
[1734552687188,3.94241939,210.57,210.39,5.595964]
[1734552687383,3.94241939,210.56,210.17,54.56]
[1734552687586,5.81457779,210.68,210.17,54.56]
[1734552687587,3.94241939,210.55,210.17,54.56]
[1734552687791,3.94241939,210.54,210.49,5.6560865]
[1734552687985,9.4445,210.7,210.49,5.6560865]
[1734552688290,15.05098671,210.7,210.49,5.6560865]
[1734552688492,1.0,210.69,210.49,5.6560865]
[1734552688692,2.375,210.63,210.49,5.6560865]
[1734552688892,1.0,210.69,210.49,5.6560865]
[1734552689795,2.3749,210.64,210.49,5.6560865]
[1734552689995,1.0,210.69,210.46,2.3768]
[1734552690199,1.0,210.69,210.48,5.64062464]
[1734552690987,1.0,210.69,210.51,2.3763]
[1734552691192,1.0,210.69,210.48,5.64062464]
[1734552691394,5.4428,210.7,210.48,5.64062464]
[1734552691590,3.0686,210.7,210.48,5.64062464]
[1734552692193,3.0686,210.7,210.35,54.44]
[1734552692397,3.0686,210.7,210.33,54.44]
[1734552692595,2.570342,210.7,210.34,0.95084149]
[1734552692798,2.9609,210.69,210.34,0.95084149]
[1734552693093,2.9609,210.69,210.37,2.3779]
[1734552693400,2.3759,210.55,210.06,35.06605686]
[1734552693602,4.954207,210.68,210.06,35.06605686]
[1734552693900,2.3761,210.54,210.34,5.816524]
[1734552694202,1.0,210.54,210.34,8.194624]
[1734552694504,5.71234235,210.65,210.34,5.816524]
[1734552694799,0.94935206,210.67,210.34,5.816524]
[1734552695099,11.72089401,210.88,210.65,5.75845554]
[1734552695496,3.0049,210.88,210.65,5.75845554]
[1734552695699,3.0049,210.88,210.81,2.3729]
[1734552695899,54.4,211.06,210.65,5.75845554]
[1734552696095,2.3704,211.04,210.44,54.4]
[1734552696395,54.4,211.06,210.86,5.64374875]
[1734552696600,2.3704,211.04,210.86,5.64374875]
[1734552696899,5.64033002,211.09,210.89,2.372]
[1734552697094,54.4,211.12,210.86,5.64374875]
[1734552697399,54.4,211.12,210.92,2.3717]
[1734552697600,5.68477347,211.11,210.86,5.64374875]
[1734552698495,5.68477347,211.11,210.66,1.0]
[1734552698701,0.94741828,211.1,210.63,60.66276172]
[1734552698898,54.34,211.09,210.78,5.80044041]
[1734552699092,5.61867808,211.03,210.63,60.66276172]
[1734552699498,0.94777746,211.02,210.74,5.79097539]
[1734552699800,55.28777746,211.02,210.2,3.231]
[1734552699999,54.34,211.01,210.2,3.231]
[1734552700198,54.34,211.01,210.57,5.67770587]
[1734552700199,2.3738,210.74,210.57,5.67770587]
[1734552700396,57.4301,210.73,209.98,10.2242]
[1734552700603,57.4301,210.73,210.08,3.1356]
[1734552700900,57.4301,210.73,210.53,5.76650006]
[1734552701102,57.4301,210.73,210.1,1.95192765]
[1734552701400,54.34,210.72,210.38,5.61623296]
[1734552701896,5.81374313,210.68,210.38,5.61623296]
[1734552702101,0.94917184,210.71,210.38,5.61623296]
[1734552702301,1.0,210.72,210.38,5.61623296]
[1734552702494,0.5515678,210.72,210.23,54.34]
[1734552702798,57.4301,210.73,210.59,5.62138213]
[1734552703301,2.3741,210.71,210.59,5.62138213]
[1734552703496,57.4301,210.73,210.59,5.62138213]
[1734552703802,2.3727,210.83,210.61,2.3751]
[1734552704102,54.34,211.15,210.57,54.34]
[1734552704298,54.32,211.18,210.82,5.78383334]
[1734552704600,0.94710422,211.17,210.6,3.2072]
[1734552704905,0.94710422,211.17,210.61,3.0895]
[1734552705103,5.70859278,211.23,211.0,5.79352342]
[1734552705506,3.0176,211.22,211.0,5.79352342]
[1734552706199,1.0,211.21,211.0,5.79352342]
[1734552706403,7.0958,211.21,211.0,5.79352342]
[1734552706601,7.0958,211.21,210.64,4.7498]
[1734552706805,0.94696969,211.2,210.64,4.7498]
[1734552707007,5.82753687,211.06,210.49,4.7531]
[1734552707305,54.28,211.05,210.66,5.65065185]
[1734552707506,55.22768764,211.04,210.66,5.65065185]
[1734552707700,5.57273143,210.93,210.66,5.65065185]
[1734552707902,5.57273143,210.93,210.33,6.2181]
[1734552708098,2.374,210.73,210.55,5.64212041]
[1734552708302,54.28,210.8,210.55,5.64212041]
[1734552708506,2.9774,210.79,210.55,5.64212041]
[1734552709205,1.0,210.78,210.55,5.64212041]
[1734552709408,1.0,210.78,210.77,5.63388017]
[1734552709608,54.28,211.0,210.77,5.63388017]
[1734552709804,2.9774,210.99,210.77,5.63388017]
[1734552710706,2.9774,210.99,210.86,2.3724]
[1734552711005,2.9774,210.99,210.57,3.1942]
[1734552711202,2.3716,210.94,210.82,5.60879509]
[1734552711407,1.0,210.98,210.58,0.94975781]
[1734552711707,1.0,210.98,210.81,5.6943124]
[1734552712304,1.0,210.98,210.58,0.94975781]
[1734552712610,0.94795715,210.98,210.78,5.74596035]
[1734552712908,0.94795715,210.98,210.88,2.3721]
[1734552713109,0.94795715,210.98,210.59,1.0]
[1734552713508,2.9774,210.99,210.91,5.71407946]
[1734552713704,2.9774,210.99,210.59,1.0]
[1734552714009,5.59680335,211.09,210.9,5.74539105]
[1734552714209,54.26,211.29,210.9,5.74539105]
[1734552714413,5.56833827,211.15,210.9,5.74539105]
[1734552714804,3.929,211.14,210.6,0.94966761]
[1734552715008,3.929,211.14,210.87,5.61046658]
[1734552715215,3.929,211.14,210.6,0.94966761]
[1734552715512,3.929,211.14,210.86,5.57515777]
[1734552716009,5.6651164,211.13,210.94,2.3715]
[1734552716311,5.6651164,211.13,210.85,5.67308742]
[1734552716605,3.929,211.14,210.85,5.67308742]
[1734552716606,2.929,211.14,210.85,5.67308742]
[1734552716811,5.59850147,211.05,210.85,5.67308742]
[1734552717005,2.9399,211.04,210.85,5.67308742]
[1734552717609,2.9399,211.04,210.6,0.94966761]
[1734552717808,1.0,211.03,210.43,7.6685]
[1734552718006,1.0,211.03,210.33,5.9409]
[1734552718205,1.0,211.03,210.48,5.79379141]
[1734552718606,54.26,211.02,210.48,5.79379141]
[1734552718805,54.26,211.02,210.22,54.26]
[1734552719104,5.74530093,210.94,210.7,5.68942166]
[1734552719509,4.05168186,210.93,210.37,35.03350462]
[1734552719706,4.05168186,210.93,210.53,5.68600048]
[1734552719910,5.82341786,210.76,210.53,5.68600048]
[1734552720107,2.3742,210.71,210.53,8.06200048]
[1734552720312,57.2383,210.75,210.53,5.68600048]
[1734552720611,2.3725,210.86,210.64,2.3749]
[1734552720813,5.60275178,210.88,210.4,35.03655611]
[1734552721013,57.2383,210.91,210.7,5.66262242]
[1734552721209,5.57538234,210.89,210.41,0.95052516]
[1734552721413,1.0,210.85,210.63,5.81258413]
[1734552721608,1.0,210.85,210.41,0.95052516]
[1734552721814,5.76391199,210.71,210.55,5.70463125]
[1734552722014,54.28,210.7,210.23,3.9788]
[1734552722213,54.28,210.7,210.48,5.80324248]
[1734552722409,57.2941,210.84,210.7,0.36323008]
[1734552722915,54.28,210.84,210.7,0.36323008]
[1734552723109,2.9583,210.92,210.7,0.36323008]
[1734552723310,0.94818186,210.93,210.87,2.3722]
[1734552723507,5.82433275,211.02,210.7,0.36323008]
[1734552723711,5.82433275,211.02,210.86,5.64193047]
[1734552724010,5.82433275,211.02,210.7,0.36323008]
[1734552724414,1.0,211.01,210.7,0.36323008]
[1734552725115,5.58549976,210.84,210.7,0.36323008]
[1734552725415,2.3732,210.8,210.7,0.36323008]
[1734552725615,60.5679,210.83,210.7,0.36323008]
[1734552725914,60.5679,210.83,210.62,2.3752]
[1734552725915,2.3737,210.76,210.62,2.3752]
[1734552726106,0.94867659,210.82,210.59,5.72096839]
[1734552726311,3.1804,210.83,210.59,5.72096839]
[1734552726618,54.28,210.94,210.48,54.28]
[1734552726812,2.9319,211.17,210.74,5.58137699]
[1734552727011,58.20754908,211.16,210.74,5.58137699]
[1734552727217,5.83093223,211.07,210.74,5.58137699]
[1734552727610,1.0,211.06,210.54,14.42]
[1734552727812,1.0,211.06,210.55,0.94989313]
[1734552728018,2.3707,211.03,210.7,2.3744]
[1734552728215,1.0,211.06,210.84,5.70216628]
[1734552728610,58.20754908,211.16,210.84,5.70216628]
[1734552728809,0.94714908,211.16,210.64,4.7501]
[1734552729016,0.94714908,211.16,211.02,5.68597329]
[1734552729515,4.7285,211.62,210.95,54.26]
[1734552729712,61.16193491,211.61,211.15,5.8294176]
[1734552730017,54.26,211.6,211.15,5.8294176]
[1734552730217,2.3648,211.57,211.39,2.3667]
[1734552730518,54.26,211.6,211.16,6.95374908]
[1734552730715,2.3662,211.44,211.38,5.78900274]
[1734552730915,14.39,211.58,211.29,5.58635918]
[1734552731114,54.2,211.58,211.29,5.58635918]
[1734552731723,54.2,211.58,211.16,6.95374908]
[1734552731724,56.5646,211.58,211.36,2.367]
[1734552731918,54.2,211.58,211.16,6.95374908]
[1734552732312,7.2085,211.57,211.16,0.94714908]
[1734552732519,6.88159293,211.57,211.16,0.94714908]
[1734552732815,1.0,211.57,211.33,5.57793351]
[1734552733021,54.2,211.72,211.33,5.57793351]
[1734552733215,54.2,211.71,211.16,0.94714908]
[1734552733521,54.2,211.71,211.53,5.56204196]
[1734552733816,1.0,211.7,211.16,0.94714908]
[1734552734018,0.94477774,211.69,211.16,0.94714908]
[1734552734220,54.16,211.68,211.4,5.60460861]
[1734552734419,3.93267774,211.69,211.4,5.60460861]
[1734552734621,1.0,211.68,211.4,5.60460861]
[1734552734817,1.0,211.68,211.16,5.68554908]
[1734552735219,1.0,211.68,211.48,5.67041353]
[1734552735921,1.0,211.68,211.38,2.3668]
[1734552736123,1.0,211.68,211.16,0.94714908]
[1734552736516,1.0,211.68,211.35,5.76917748]
[1734552736721,54.16,211.67,211.35,5.76917748]
[1734552736916,5.81174816,211.59,211.35,5.76917748]
[1734552737122,54.16,211.67,211.35,5.76917748]
[1734552737418,1.0,211.66,211.49,2.3655]
[1734552737725,1.0,211.66,211.53,5.78336771]
[1734552738024,1.0,211.66,211.16,0.94714908]
[1734552738323,1.0,211.66,211.45,5.74871947]
[1734552738618,0.94495629,211.65,211.41,5.65278448]
[1734552738823,5.56706743,211.55,211.16,0.94714908]
[1734552739024,14.39,211.53,210.61,96.0]
[1734552739225,57.1606,211.52,211.18,5.71352439]
[1734552739525,5.56933808,211.4,211.18,5.71352439]
[1734552739725,57.1606,211.52,211.18,5.71352439]
[1734552739920,5.80718872,211.44,211.18,5.71352439]
[1734552740125,3.0006,211.43,210.87,6.1465]
[1734552740721,14.39,211.42,211.02,5.6510815]
[1734552740924,14.39,211.42,210.87,6.1465]
[1734552741125,14.39,211.42,211.01,5.75042246]
[1734552741325,1.94602904,211.41,211.01,5.75042246]
[1734552741525,5.67543807,211.2,211.01,5.75042246]
[1734552741724,2.3691,211.18,211.05,2.3705]
[1734552741921,54.16,211.29,211.01,5.75042246]
[1734552742124,3.1494,211.28,211.01,5.75042246]
[1734552742526,2.85518364,211.28,211.01,5.75042246]
[1734552742827,2.3701,211.09,210.75,6.1242]
[1734552743021,54.16,211.08,210.75,6.1242]
[1734552743225,54.16,211.07,210.75,6.1242]
[1734552743425,54.16,211.07,210.98,5.79714804]
[1734552743823,54.16,211.22,210.98,5.79714804]
[1734552744028,5.74368665,211.21,210.98,5.79714804]
[1734552744223,54.16,211.2,210.98,5.79714804]
[1734552744625,1.0,211.21,210.98,5.79714804]
[1734552745022,8.45352918,211.28,210.98,5.79714804]
[1734552745220,1.0,211.19,210.75,6.1242]
[1734552745425,3.2149,211.18,210.75,6.1242]
[1734552745626,0.94710422,211.17,210.75,6.1242]
[1734552745823,0.94710422,211.17,210.95,5.69959584]
[1734552746024,0.94710422,211.17,211.01,2.371]
[1734552746025,1.0,211.17,211.01,2.371]
[1734552746228,1.0,211.17,210.95,5.69959584]
[1734552746624,1.0,211.17,210.76,0.94894666]
[1734552746829,1.0,211.17,210.53,4.7529]
[1734552746830,0.94714908,211.16,210.86,5.77126741]
[1734552747432,1.0,211.17,210.67,4.7499]
[1734552747630,5.65750302,211.19,210.68,0.949307]
[1734552747831,1.0,211.15,210.68,0.949307]
[1734552748027,1.0,211.15,210.91,5.73099363]
[1734552748331,6.66156154,211.15,210.91,5.73099363]
[1734552749028,6.66156154,211.15,210.68,0.949307]
[1734552749233,0.94723879,211.14,210.88,5.68318793]
[1734552749531,0.94723879,211.14,210.69,2.9545]
[1734552749725,0.94723879,211.14,210.86,5.77993757]
[1734552749930,1.0,211.13,210.86,5.77993757]
[1734552750126,2.3694,211.2,211.04,2.3711]
[1734552750334,3.2149,211.26,210.87,9.1367]
[1734552750536,54.18,211.27,211.11,5.82717416]
[1734552751533,54.18,211.27,210.87,9.1367]
[1734552751734,3.1707,211.4,211.21,5.77504914]
[1734552751929,8.74613887,211.4,210.88,1.0]
[1734552752130,8.74613887,211.4,211.12,5.62264016]
[1734552752330,4.00731854,211.39,211.12,5.62264016]
[1734552752634,0.9461633,211.38,211.27,1e-08]
[1734552752930,0.9461633,211.38,211.12,5.62264016]
[1734552753536,1.0,211.37,211.12,5.62264016]
[1734552753736,1.0,211.37,210.89,0.9483617]
[1734552753930,5.69656989,211.27,211.08,5.7773239]
[1734552754132,0.94625283,211.36,211.08,5.7773239]
[1734552754330,5.70788587,211.31,211.08,5.7773239]
[1734552754533,20.09788587,211.31,210.89,0.9483617]
[1734552754732,1.0,211.26,210.99,5.70219845]
[1734552756236,1.0,211.26,210.75,2.9442]
[1734552756432,1.0,211.26,210.95,5.73006677]
[1734552756835,1.0,211.26,210.96,3.2065]
[1734552757039,1.0,211.26,211.09,5.72210439]
[1734552757238,54.18,211.29,211.09,5.72210439]
[1734552757537,59.92257907,211.29,211.05,5.79769869]
[1734552757737,2.3691,211.22,211.05,5.79769869]
[1734552757938,1.0,211.28,211.05,5.79769869]
[1734552758139,54.18,211.29,211.05,5.79769869]
[1734552758637,1.0,211.28,211.05,5.79769869]
[1734552758840,54.18,211.29,211.05,5.79769869]
[1734552760335,1.0,211.28,210.8,3.1142]
[1734552760736,15.39,211.28,210.76,0.94894666]
[1734552761040,14.39,211.15,210.76,0.94894666]
[1734552761241,9.2348,211.14,210.79,5.64414194]
[1734552761435,5.72384538,210.95,210.76,0.94894666]
[1734552761740,54.2,210.94,210.76,0.94894666]
[1734552761942,57.2974,210.94,210.61,9.1059]
[1734552762142,57.2974,210.94,210.7,5.80184089]
[1734552762338,57.2974,210.94,210.71,2.3746]
[1734552762339,2.3733,210.84,210.71,2.3746]
[1734552762640,5.76028124,210.86,210.7,5.80184089]
[1734552762840,2.3741,210.77,210.64,2.3755]
[1734552763037,5.76028124,210.86,210.41,6.1106]
[1734552763241,5.76028124,210.86,210.41,9.2602]
[1734552763444,1.0,210.83,210.64,5.73523158]
[1734552763841,2.3728,210.88,210.71,2.3747]
[1734552764042,5.77622192,210.91,210.64,5.73523158]
[1734552764242,5.77622192,210.91,210.42,0.95047999]
[1734552764444,2.3743,210.75,210.42,0.95047999]
[1734552764638,54.22,210.75,210.42,0.95047999]
[1734552764844,54.22,210.75,210.64,5.65274929]
[1734552765144,54.22,210.75,210.42,0.95047999]
[1734552765347,1.0,210.74,210.55,5.65274929]
[1734552765643,54.22,210.75,210.55,5.65274929]
[1734552766843,3.0974,210.94,210.55,5.65274929]
[1734552767045,54.24,210.9,210.71,2.3745]
[1734552767248,54.24,211.04,210.73,5.73591985]
[1734552767449,5.69724146,211.02,210.74,3.179]
[1734552768050,2.3728,210.87,210.73,5.73591985]
[1734552768247,1.0,211.01,210.73,5.73591985]
[1734552769151,2.3728,210.88,210.73,5.73591985]
[1734552769351,1.0,211.01,210.73,5.73591985]
[1734552769745,1.0,211.01,210.74,8.9439]
[1734552770251,1.0,211.01,210.85,5.60042708]
[1734552770451,1.0,211.01,210.42,15.37047999]
[1734552770650,1.0,211.01,210.74,5.75512803]
[1734552770651,3.2015,211.0,210.74,5.75512803]
[1734552771450,5.83255383,210.94,210.74,5.75512803]
[1734552771750,3.2015,211.0,210.74,5.75512803]
[1734552772547,2.98701627,211.0,210.74,5.75512803]
[1734552772850,1.0,210.99,210.53,2.9902]
[1734552773250,2.3741,210.76,210.6,2.3758]
[1734552773446,54.26,210.75,210.53,2.9902]
[1734552773652,54.26,210.74,210.53,2.9902]
[1734552773955,54.26,210.74,210.42,0.95047999]
[1734552774151,55.26,210.74,210.43,8.9604]
[1734552774352,2.3755,210.64,210.46,2.3774]
[1734552774653,69.65,210.74,210.09,96.0]
[1734552774849,5.64004372,210.66,210.39,5.60470796]
[1734552775054,5.64004372,210.66,210.17,6.2853]
[1734552775055,69.65,210.74,210.24,42.38222912]
[1734552775254,14.39,210.65,210.17,6.2853]
[1734552775449,5.76998814,210.53,210.25,5.80589384]
[1734552775648,14.39,210.51,210.18,11.92149504]
[1734552775848,14.39,210.51,210.09,3.2268]
[1734552776052,60.4435,210.52,210.2,5.75232026]
[1734552776251,5.79734486,210.35,210.1,21.46099943]
[1734552776452,5.79734486,210.35,210.14,5.77853712]
[1734552776657,5.79734486,210.35,210.11,21.4658881]
[1734552776850,5.79734486,210.35,210.12,47.08910593]
[1734552777053,5.79734486,210.35,210.13,47.08910593]
[1734552777355,5.79734486,210.35,210.14,47.08910593]
[1734552777655,5.79734486,210.35,210.15,47.08910593]
[1734552777858,5.79734486,210.35,210.16,47.08910593]
[1734552778153,6.1835,210.52,210.17,25.62372588]
[1734552778352,6.1835,210.52,210.06,5.73937184]
[1734552778353,6.1835,210.52,210.18,24.46815915]
[1734552778655,3.0435,210.52,210.28,5.78393839]
[1734552778854,54.3,210.59,210.29,24.46815915]
[1734552779051,5.79993664,210.63,210.3,24.46815915]
[1734552779252,54.32,210.75,210.31,18.93866749]
[1734552779560,54.32,210.75,210.32,22.59748774]
[1734552779755,57.3545,210.91,210.51,5.60338672]
[1734552779951,5.72794452,210.85,210.52,23.15576996]
[1734552780157,5.72794452,210.85,210.53,6.58537574]
[1734552780358,5.72794452,210.85,210.63,5.7303362]
[1734552780558,5.72794452,210.85,210.55,6.38854477]
[1734552780758,5.72794452,210.85,210.56,5.87959426]
[1734552780958,3.9443,210.84,210.56,5.87959426]
[1734552781157,2.3741,210.76,210.56,5.87959426]
[1734552781353,3.9443,210.84,210.53,5.5741683]
[1734552781557,5.72463664,210.73,210.53,5.5741683]
[1734552781752,54.32,210.72,210.53,5.5741683]
[1734552781957,54.32,210.72,210.54,5.33506181]
[1734552782159,54.32,210.72,210.55,5.33506181]
[1734552782360,54.32,210.72,210.56,5.33506181]
[1734552782559,54.32,210.72,210.53,5.5741683]
[1734552782758,2.3765,210.55,210.34,5.98991594]
[1734552783061,4.0338,210.71,210.42,5.77593267]
[1734552783361,4.0338,210.71,210.4,5.64997243]
[1734552783861,5.82103781,210.58,210.41,19.35922618]
[1734552784161,5.82103781,210.58,210.24,5.92252948]
[1734552784355,5.82103781,210.58,210.31,5.7417119]
[1734552784561,1.0,210.57,210.24,5.92252948]
[1734552784756,3.0889,210.56,210.14,5.92252948]
[1734552785060,5.70062223,210.44,210.25,5.60132217]
[1734552785255,54.34,210.43,210.16,5.92252948]
[1734552785461,57.3358,210.43,210.17,5.92252948]
[1734552785655,58.3358,210.43,210.18,11.63856033]
[1734552785861,58.3358,210.43,210.18,5.71603085]
[1734552785862,2.3798,210.25,210.18,5.71603085]
[1734552786160,54.34,210.29,210.15,5.92252948]
[1734552786359,54.34,210.29,210.16,5.92252948]
[1734552786558,5.5881963,210.27,210.14,5.92252948]
[1734552786754,5.5881963,210.27,209.99,5.8958]
[1734552787061,3.0216,210.26,210.02,5.63158068]
[1734552787257,3.0216,210.26,210.03,0.87422757]
[1734552787458,1.0,210.26,210.04,0.87423396]
[1734552787654,1.0,210.26,210.05,0.87423396]
[1734552787860,54.34,210.29,210.06,0.87423396]
[1734552788159,54.34,210.29,210.03,3.0279]
[1734552788359,54.34,210.29,210.04,0.87426923]
[1734552788557,54.34,210.29,210.05,0.87428181]
[1734552788762,5.70416144,210.2,209.98,5.67044282]
[1734552788960,5.70416144,210.2,209.84,6.2318]
[1734552789158,3.0216,210.19,209.88,0.87451642]
[1734552789354,7.1877,210.19,209.89,0.87451642]
[1734552789556,7.1877,210.19,209.9,0.87451642]
[1734552789861,5.67497155,210.0,209.91,0.87477543]
[1734552790061,54.38,209.99,209.91,0.87477543]
[1734552790358,54.38,209.99,209.92,0.87459851]
[1734552790662,54.38,209.99,209.81,5.58471752]
[1734552790857,54.38,209.99,209.82,0.87457289]
[1734552791662,54.38,209.99,209.83,0.87454736]
[1734552791857,54.38,209.99,209.84,0.87454736]
[1734552792061,54.38,209.99,209.85,0.87454736]
[1734552792257,54.38,209.99,209.86,0.87454736]
[1734552792462,54.38,209.99,209.81,5.58471752]
[1734552792763,54.38,209.99,209.82,0.87492002]
[1734552793155,1.0,209.98,209.72,3.0489]
[1734552793361,1.0,209.98,207.19,1.74830659]
[1734552793362,1.0,209.98,209.38,96.0]
[1734552793563,5.81107831,209.87,209.61,5.76300557]
[1734552793761,2.3849,209.8,209.62,0.87538686]
[1734552793959,5.81107831,209.87,209.63,2.9872]
[1734552794159,54.44,209.91,209.63,2.9872]
[1734552794361,54.44,209.91,209.64,0.87519125]
[1734552794763,2.3846,209.83,209.64,0.87519125]
[1734552794963,1.0,209.9,209.65,0.87506716]
[1734552795160,54.44,209.91,209.35,96.0]
[1734552795362,2.9947,209.93,209.25,96.0]
[1734552795665,5.82137961,209.74,209.51,5.78360817]
[1734552795962,54.44,209.73,209.51,5.78360817]
[1734552796364,2.3878,209.53,209.52,0.87492357]
[1734552796563,54.44,209.53,209.46,5.65011004]
[1734552796763,54.44,209.53,209.52,0.87458151]
[1734552797163,54.44,209.53,209.45,0.87476388]
[1734552797366,54.44,209.53,209.39,5.6289121]
[1734552797558,4.1015,209.72,209.39,5.6289121]
[1734552797762,5.69422467,209.65,209.39,5.6289121]
[1734552798166,5.69422467,209.65,209.4,0.87459811]
[1734552798366,5.69422467,209.65,209.41,0.87455727]
[1734552798666,2.3895,209.38,209.24,8.05256839]
[1734552798866,54.5,209.44,209.24,5.66156839]
[1734552799165,54.5,209.43,209.13,6.1976]
[1734552799365,54.5,209.42,209.22,5.86609985]
[1734552799565,57.5898,209.42,209.15,5.82370717]
[1734552799863,54.54,209.41,209.15,5.82370717]
[1734552800064,54.54,209.41,209.16,2.9517]
[1734552800260,2.3885,209.47,209.3,2.3904]
[1734552800564,54.54,209.5,209.16,9.2054]
[1734552800765,54.54,209.5,209.18,2.3917]
[1734552800964,54.54,209.5,209.16,9.2054]
[1734552801161,1.0,209.49,209.16,9.2054]
[1734552801363,1.0,209.49,209.19,5.71468122]
[1734552801861,5.63721542,209.43,209.19,5.71468122]
[1734552802865,5.63721542,209.43,209.25,2.391]
[1734552803066,1.0,209.42,209.19,5.71468122]
[1734552803567,54.58,209.41,209.19,5.71468122]
[1734552803861,2.3899,209.36,209.2,2.3917]
[1734552804061,54.58,209.41,209.19,5.71468122]
[1734552804467,54.58,209.41,209.05,8.9744]
[1734552804669,1.0,209.4,209.17,5.68984998]
[1734552804969,2.3899,209.36,209.22,2.3915]
[1734552805273,1.0,209.4,209.17,5.68984998]
[1734552805469,60.21721542,209.43,209.25,2.3911]
[1734552805668,54.58,209.43,209.17,5.68984998]
[1734552805869,54.58,209.43,209.16,96.0]
[1734552806173,54.58,209.57,209.31,5.79711905]
[1734552806470,5.84906975,209.56,209.31,5.79711905]
[1734552806670,54.58,209.57,209.32,6.1437]
[1734552806866,54.6,209.72,209.33,96.0]
[1734552807066,54.6,209.72,209.33,0.87526594]
[1734552807067,2.3862,209.69,209.33,0.87526594]
[1734552807271,38.634209,209.72,209.35,96.0]
[1734552807570,5.40863178,209.72,209.52,5.7200335]
[1734552807767,6.1863,209.81,209.52,5.7200335]
[1734552807968,3.1855,209.87,209.53,3.86190335]
[1734552808170,54.6,209.89,209.54,0.87270335]
[1734552808475,54.6,209.89,209.65,383.65918396]
[1734552808669,56.9839,209.89,209.7,2.386]
[1734552808865,54.58,210.03,209.7,5.60934907]
[1734552809166,5.77222149,210.02,209.71,80.2184375]